Cogmind - Beta 11.1 @@@ ROGUE MODE // 2022.09.09 @ 09:36:00 Player: Heclapar Result: Destroyed by as-69721 with Assembled Heavy Rifle Performance ------------- Evolutions (0) 0 Regions Visited (2) 400 Robots Destroyed (13) 65 Value Destroyed (291) 291 Prototype IDs (3) 60 Alien Tech Used (0) 0 Bonus (0) 0 TOTAL SCORE: 816 Bonus ------- None Cogmind --------- Core Integrity 0/250 Matter 256/300 Energy 85/100 System Corruption 9% Temperature Warm (101) Movement Walking (190) Ox1 Location -10/Mines Parts ------- > --- POWER (1) -------- (None) > --- PROPULSION (2) --- Aluminum Leg > --- UTILITY (2) ------ Small Storage Unit > --- WEAPON (2) ------- Beam Rifle Particle Gun > --- INVENTORY (8) ---- Aluminum Leg Heat Sink High-capacity Matter Pod (200) Medium Laser Assault Rifle Light Assault Rifle Peak State ------------ > --- POWER ------------ Ion Engine > --- PROPULSION ------- Aluminum Leg Aluminum Leg > --- UTILITY ---------- Small Storage Unit Seismic Detector > --- WEAPON ----------- Particle Gun Light Assault Rifle > --- INVENTORY -------- Light Treads Light Treads Heat Sink High-capacity Matter Pod Medium Laser Beam Rifle Assault Rifle Grenade Launcher [Rating: 8] Favorites ----------- Power Ion Engine Engine Ion Engine Propulsion Aluminum Leg Leg Aluminum Leg Utility Small Storage Unit Device Seismic Detector Storage Small Storage Unit Weapon Light Assault Rifle Energy Gun Medium Laser Ballistic Gun Light Assault Rifle Launcher Grenade Launcher Build | -11 -10 -10 ------- Run | Scr Mat Min Slots Evolved . | . . . Power . | . . . Propulsion . | . . . Utility . | . . . Weapon . | . . . Parts Attached 9 | 1 3 5 Power 2 | . 1 1 Engine 2 | . 1 1 Core . | . . . Reactor . | . . . Propulsion 2 | . 1 1 Treads . | . . . Leg 2 | . 1 1 Wheel . | . . . Hover . | . . . Flight . | . . . Utility 1 | 1 . . Device 1 | 1 . . Storage . | . . . Processor . | . . . Hackware . | . . . Protection . | . . . Artifact . | . . . Weapon 4 | . 1 3 Energy Gun 3 | . 1 2 Energy Cannon . | . . . Ballistic Gun . | . . . Ballistic Cannon . | . . . Launcher 1 | . . 1 Special Weapon . | . . . Impact Weapon . | . . . Slashing Weapon . | . . . Piercing Weapon . | . . . Special Melee Weapon . | . . . Unidentified Prototypes . | . . . Parts Lost 4 | . . 4 Power 1 | . . 1 Propulsion 1 | . . 1 Utility 1 | . . 1 Weapon 1 | . . 1 Highest Loss Streak 4 | . . 4 To Critical Strikes . | . . . Average Slot Usage (%) 97 | . 98 96 Engine 12 | . 12 12 Leg 27 | . 28 27 Device 13 | . 14 12 Storage 14 | . 14 14 Energy Gun 14 | . 13 14 Ballistic Gun 13 | . 14 13 Naked Turns . | . . . Heaviest Build 15 | 12 14 15 Greatest Support 20 | 20 20 20 Greatest Overweight (x) . | . . . Average Overweight (x) . | . . . Largest Inventory Capacity 8 | 8 8 8 Average Capacity 8 | 8 8 8 Most Carried 8 | 7 8 8 Average Carried 7 | 6 7 7 Final Capacity 8 | 8 8 8 Final Carried 8 | 6 8 6 Class Distribution -------------------- 91% | Mutant 8% | Scavenger-Mutant Dominant Class ---------------- Mutant | -10/Materials Mutant | -10/Mines Resources | -11 -10 -10 ----------- Run | Scr Mat Min Matter Collected 498 | 160 202 136 Remotely . | . . . Salvage Created 427 | 15 285 127 Parts 32 | 5 21 6 Haulers Intercepted 1 | . 1 . Recyclers Shooed 1 | . . 1 Parts Field Recycled . | . . . Retrieved Matter . | . . . Parts Self-Destructed . | . . . Prevented . | . . . Kills | -11 -10 -10 ------- Run | Scr Mat Min Combat Hostiles Destroyed 18 | . 8 10 Guns 10 | . 8 2 AOE 8 | . . 8 Classes Destroyed 6 | 1 4 1 Worker 1 | . 1 . Tunneler 1 | 1 . . Hauler 1 | . 1 . Swarmer 3 | . 3 . Grunt 7 | . 5 2 Assembled 8 | . . 8 Best Kill Streak 8 | 1 4 8 Combat Bots Only 8 | . 3 8 Max Kills in Single Turn 4 | 1 1 4 Gunslinging . | . . . Exploded 4 | . . 4 Melee . | . . . Uniques/NPCs Destroyed . | . . . Combat | -11 -10 -10 -------- Run | Scr Mat Min Damage Taken 794 | . 173 621 Core 259 | . 22 237 Absorbed by Shields . | . . . Core Remaining (%) 100 | 100 . . Volleys Fired 47 | 2 29 16 Largest 2 | 2 2 2 Hottest 85 | 70 70 85 Shots Fired 91 | 4 58 29 Gun 88 | 4 58 26 Cannon . | . . . Launcher 3 | . . 3 Special . | . . . Kinetic 44 | 2 29 13 Thermal 44 | 2 29 13 Explosive 3 | . . 3 Electromagnetic . | . . . Robot Hit Streak 10 | 3 10 6 Robot Miss Streak 4 | 1 4 2 Penetration Max . | . . . Secondary Targets . | . . . Shots Hit Robots 60 | 3 37 20 Core Hits 42 | 2 17 23 Critical Kills . | . . . Critical Parts Destroyed . | . . . Critical Strikes 6 | . 5 1 Burn 6 | . 5 1 Melee Attacks . | . . . Impact . | . . . Slashing . | . . . Piercing . | . . . Sneak Attacks . | . . . Combat Hostiles . | . . . Follow-up Attacks . | . . . Damage Inflicted 1157 | 32 400 725 Guns 618 | 32 389 197 Cannons . | . . . Explosions 528 | . . 528 Melee . | . . . Ramming 11 | . 11 . Kinetic 204 | 7 149 48 Thermal 414 | 25 240 149 Explosive 528 | . . 528 Electromagnetic . | . . . Impact . | . . . Slashing . | . . . Piercing . | . . . Highest Corruption 9 | . . 9 Average Corruption 5 | . . 5 Corruption Purged . | . . . Corruption Blocked . | . . . Overload Shots . | . . . Overflow Damage 25 | . . 25 Projectiles . | . . . Explosions 25 | . . 25 Melee . | . . . Knockbacks . | . . . Impact . | . . . Kinetic . | . . . Secondary . | . . . Self-Inflicted Damage 62 | . . 62 Shots 3 | . . 3 Rammed . | . . . Targets Rammed 1 | . 1 . Kicked 1 | . 1 . Crushed . | . . . Highest Temperature 208 | 40 208 196 Average Temperature 64 | 20 63 70 Received Heat Transfer 216 | . 60 156 Siege Activations . | . . . Robots Corrupted . | . . . Combat Hostiles . | . . . Parts Fried . | . . . Impact Corruptions . | . . . Robots Melted . | . . . Combat Hostiles . | . . . Parts Melted 1 | . 1 . Heat Transferred 1554 | 74 1036 444 Parts Sabotaged . | . . . Parts Stolen . | . . . Parts Stripped . | . . . Power Chain Reactions . | . . . Missiles Intercepted . | . . . Alert | -11 -10 -10 ------- Run | Scr Mat Min Peak Influence 171 | 5 171 144 Initial 34 | . 3 34 Average 74 | 4 72 82 Maximum Alert Level . | . . . Low Security (%) 100 | 100 100 100 Level 1 . | . . . Level 2 . | . . . Level 3 . | . . . Level 4 . | . . . Level 5 . | . . . High Security . | . . . Max Security . | . . . Squads Dispatched 1 | . 1 . Investigation 1 | . 1 . Extermination . | . . . Reinforcement . | . . . Assault . | . . . Garrison . | . . . Intercept . | . . . Searches Triggered . | . . . Construction Impeded . | . . . Haulers Reinforced . | . . . Active Scanning Responses . | . . . Cargo Convoy Interrupts . | . . . Stealth | -11 -10 -10 --------- Run | Scr Mat Min Distress Signals 2 | . 2 . Communications Jammed . | . . . Distress Signals . | . . . Times Spotted 32 | . 10 22 Peak Tracking Total 14 | . 4 14 Tactical Retreats 3 | . 2 1 Traps | -11 -10 -10 ------- Run | Scr Mat Min Traps Triggered 3 | . 3 . Indirectly . | . . . Trap Hack Attempts . | . . . Triggered . | . . . Disarmed . | . . . Reprogrammed . | . . . Reused . | . . . Traps Extracted . | . . . Installed . | . . . Triggered . | . . . Machines | -11 -10 -10 ---------- Run | Scr Mat Min Machines Disabled . | . . . Max in Single Turn . | . . . Machines Sabotaged . | . . . Garrisons Compromised . | . . . Overloaded Fab Kills . | . . . Hacking | -11 -10 -10 --------- Run | Scr Mat Min Machines Accessed 4 | . 4 . Terminals 3 | . 3 . Fabricators . | . . . Repair Stations . | . . . Recycling Units 1 | . 1 . Scanalyzers . | . . . Garrison Access . | . . . Total Hacks 9 | . 9 . Successful 4 | . 4 . Failed 5 | . 5 . Catastrophic 1 | . 1 . Database Lockouts . | . . . Manual 9 | . 9 . Terminals 7 | . 7 . Fabricators . | . . . Repair Stations . | . . . Recycling Units 2 | . 2 . Scanalyzers . | . . . Garrison Access . | . . . Terminal Hacks 2 | . 2 . Robot Analysis 1 | . 1 . Prototype ID Bank 1 | . 1 . Fabricator Hacks . | . . . Repair Station Hacks . | . . . Recycling Unit Hacks . | . . . Scanalyzer . | . . . Garrison Access Hacks . | . . . Unauthorized Hacks 2 | . 2 . Terminals 2 | . 2 . Botnet 2 | . 2 . Fabricators . | . . . Repair Stations . | . . . Recycling Units . | . . . Scanalyzers . | . . . Garrison Access . | . . . Data Cores Recovered . | . . . Used . | . . . Hacking Detections 4 | . 4 . Full Trace Events . | . . . Feedback Events . | . . . Feedback Blocked . | . . . Robot Schematics Acquired . | . . . Robots Built . | . . . Authchips . | . . . Time . | . . . Total Robot Build Rating . | . . . Part Schematics Acquired . | . . . Parts Built . | . . . Authchips . | . . . Time . | . . . Total Part Build Rating . | . . . Parts Repaired . | . . . Time . | . . . Parts Recycled . | . . . Recycled Matter . | . . . Retrieved Matter . | . . . Retrieved Components . | . . . Parts Scanalyzed . | . . . Part Schematics Acquired . | . . . Parts Damaged . | . . . Bothacking | -11 -10 -10 ------------ Run | Scr Mat Min Used RIF Installer . | . . . Robots Hacked . | . . . Non-combat . | . . . Combat . | . . . Robot Hacks Applied . | . . . Relay Couplers Released . | . . . Fabnet Peak Effective % . | . . . Robots Rewired . | . . . Allies Hacked . | . . . Hacks Repelled . | . . . Allies | -11 -10 -10 -------- Run | Scr Mat Min Total Allies . | . . . Largest Group . | . . . Highest-Rated Group . | . . . Highest-Rated Ally . | . . . Total Orders . | . . . Ally Attacks . | . . . Total Damage . | . . . Kills . | . . . Allies Corrupted . | . . . Allies Melted . | . . . Intel | -11 -10 -10 ------- Run | Scr Mat Min Robot Analysis Total 1 | . 1 . Derelict Logs Recovered 1 | . . 1 Drone Launches . | . . . Drone Recoveries . | . . . Exploration | -11 -10 -10 ------------- Run | Scr Mat Min Turns Passed 769 | 18 518 233 Spaces Moved 479 | 9 331 139 Core . | . . . Treads . | . . . Legs 479 | 9 331 139 Wheels . | . . . Hover . | . . . Flight . | . . . Fastest Speed 120 | 120 120 120 Average Speed 120 | 120 120 120 Slowest Speed 120 | 120 120 120 Overloaded Moves . | . . . Propulsion Burnouts . | . . . Robots Hopped . | . . . Cave-ins Triggered . | . . . Exploration Rate (%) 30 | 2 62 27 Regions Visited 2 Branch Regions 1 Pre-discovered Areas . | . . . Known Exits Taken . | . . . Unknown Exits Taken 2 | 1 1 . Scrap Searched . | . . . Spaces Dug . | . . . Terrain Destroyed 16 | . . 16 Melee . | . . . Projectile . | . . . AOE 16 | . . 16 Terrain Rammed . | . . . Walls Destroyed . | . . . Machines Disabled . | . . . Actions | -11 -10 -10 --------- Run | Scr Mat Min Total 593 | 12 401 180 Wait 44 | . 30 14 Move 477 | 8 330 139 Hop . | . . . Pick Up 7 | 1 4 2 Fast Attach 1 | . 1 . Attach 3 | 1 . 2 Detach . | . . . Swap 5 | . 2 3 Drop 8 | . 4 4 Fire 47 | 2 29 16 Melee . | . . . Ram . | . . . Kick 1 | . 1 . Crush . | . . . Escape Stasis . | . . . Rewire . | . . . Trap . | . . . Miscellaneous . | . . . Route ------- -11/Scrapyard -10/Materials (discovered 3 exits: [*Mat x2] / [*Min]) -10/Mines (discovered 1 exit: [*Mat]) History --------- Turn | Location | Event 7 | -11/Scrapyard | Discovered new exit (range 3) 19 | -11/Scrapyard | Entered Materials 220 | -10/Materials | Discovered new exit (range 16) 267 | -10/Materials | Discovered new exit (range 9) 304 | -10/Materials | Discovered new exit (range 15) 308 | -10/Materials | Build established: Mutant 537 | -10/Materials | Entered Mines 541 | -10/Mines | Joined a pair of Derelicts in attacking an 0b10 outpost 593 | -10/Mines | Met a Derelict bent on vengeance 624 | -10/Mines | Discovered new exit (range 12) 732 | -10/Mines | Assembled infested the area 762 | -10/Mines | Core integrity fell below 50% 766 | -10/Mines | Core integrity fell below 20% 770 | -10/Mines | Destroyed by as-69721 with Assembled Heavy Rifle Last Messages --------------- 00761_ Ion Engine destroyed. 00761_ System corrupted by crushing effect (+2). 00761_ Knocked back. 00763_ Destroyed Asb. Hover Unit. 00763_ Destroyed Asb. F-torch. 00763_ as-65493 destroyed. 00763_ Destroyed Asb. Hover Unit. 00763_ as-76183 destroyed. 00763_ as-14692 destroyed. 00764_ Aluminum Leg destroyed. 00764_ System corrupted by crushing effect (+5). 00765_ as-05666 destroyed. 00765_ as-04070 destroyed. 00765_ as-65354 destroyed. 00765_ as-84998 destroyed. 00766_ as-60303 destroyed. 00767_ Destroyed Asb. Hover Unit. 00767_ as-75591 destroyed. 00768_ The unstable cave ceiling collapses. 00769_ Grenade Launcher destroyed. Map ----- +----------------------------------------------------+ | ??????????????????????#%####??# #?# ! # | | ??????????????????????#=#?????# #?######### ## | | ??????????????????????# #?????# #?????????# ##? | | ??????????????????????#=#?????# ?????????## ##?? | | ??????????????????????#=#?????###??????????####??? | | ??????????#### ########=####?????????????????????? | | ????????# = #?????????????????????? | | ??????????"" #?????????????????????? | | ??????????"" ######### #?????????????????????? | | ??????????""????????????# #?????????????????????? | | ????????????????????????# #?????????????????????? | | ????????????????????????# #?????????????????????? | | ????????????????????????# ###???????????????????? | | ????????????????????????# #???????????????????? | | ?????????????????????#### #???????????????????? | | ????????????????????## #### #???????????????????? | | ???????????????????## ### #???????????????????? | | ?????????????????### ## #######?????????????? | | ????????????????## """ #?????????????? | | ????????????????# """ #?????????????? | | ????????????????# """ [#### #?????????????? | | ?????????????????# ! %###????????????????? | | ?????????????????## % #????????????????? | | ??????????????????## #?????????????????? | | ???????????????????#| %%a #?????????????????? | | ???????????????????#% @a #??????????????????? | | ???????????????????#! a #??????????????????? | | ???????????????????# ##??????????????????? | | ???????????????????# ##??????????????????? | | ??????????????????## #### ??????????????????? | | ??????????????????# #??# #?????????????????? | | ??????????????????# #??###aa#?????????????????? | | ??????????????????# ##???? #?????????????????? | | ??????????????????# ##??? #?????????????????? | | ??????????????????## #??? ?????????????????? | | ???????????????????## #???###????????????????? | | ????????????????????# ???????????????????? | | ???????????????????? #?????????????????? | | ???????????????????? #?????????????????? | | ???????????????????? ####?????????????????? | | ???????????????????? ##????????????????????? | | ??????????????????? #?????????????????????? | | ??????????????????? #?????????????????????? | | ??????????????????? ?????????????????????? | | ??????????????????? #????????????????????? | | ?????????????????? #????????????????????? | | ??????????????????# ????????????????????? | | ??????????????????## ????????????????????? | | ????????????????????#### ???????????????????????? | | ?????????????????????????????????????????????????? | +----------------------------------------------------+ Best States ------------- Heat Dissipation 25 Energy Generation 10 Energy Capacity 250 Matter Stores 300 Matter Capacity 300 Sight Range 16 Terrain Scan Density 10 Evasion (%) 55 Item Schematics ----------------- None Robot Schematics ------------------ None Fabricated ------------ Nothing Alien Tech Used ----------------- None Achievements -------------- None Challenges ------------ None Game ------ Seed EtherialDimensionalAirjet Manual? 0 Play Time 00:13:08 Cumulative 35.4 hours Start 2022.09.09 @ 09:20:10 End 2022.09.09 @ 09:36:00 Sessions 1 Manual Loads 0 Difficulty Rogue Special Mode None Game No. 40 Rogue 40 Adventurer 0 Explorer 0 Win Type - Total 0 Types 0/0/0/0/0/0/0/0/0 Lore% 33 Gallery% 41 Achievement% 33 Wizard Run 0 Options --------- ASCII 0 Keyboard 0 Movement Arrows Keybinds 0 Fullscreen 1 Font 18/X11 Map View 76x50 Tactical HUD 1 Map Filters NONE Filters NONE Steam 1 RUN: b85a41e1-71f6-4503-af70-90ce40b0d3ff